lending/lending_fUSD_20250516
["ID","MTS","AMOUNT","RATE_DAILY","PERIOD"]
[361272353,1747410643786,-151.0,0.00016438,2]
[361272354,1747410643795,-1010.32,0.00016438,2]
[361272355,1747410643806,-498.78,0.00016438,2]
[361272356,1747410643815,-400.0,0.00016438,2]
[361272357,1747410643824,-476.07,0.00016438,2]
[361272358,1747410643833,-400.0,0.00016438,2]
[361272359,1747410643843,-400.0,0.00016438,2]
[361272360,1747410643852,-1123.29,0.00016438,2]
[361272361,1747410643862,-509.17,0.00016438,2]
[361272362,1747410643871,-860.6,0.00016438,2]
[361272363,1747410643880,-400.0,0.00016438,2]
[361272364,1747410643889,-1065.87,0.00016438,2]
[361272365,1747410643899,-400.0,0.00016438,2]
[361272366,1747410643908,-405.23,0.00016438,2]
[361272367,1747410643918,-400.0,0.00016438,2]
[361272368,1747410643927,-151.0,0.00016438,2]
[361272369,1747410643936,-151.0,0.00016438,2]
[361272370,1747410643945,-400.0,0.00016438,2]
[361272371,1747410643954,-400.0,0.00016438,2]
[361272372,1747410643964,-400.0,0.00016438,2]
[361272373,1747410643973,-400.0,0.00016438,2]
[361272374,1747410643982,-601.63203726,0.00016438,2]
[361272375,1747410643991,-400.0,0.00016438,2]
[361272376,1747410644001,-151.0,0.00016438,2]
[361272377,1747410644011,-1045.24,0.00016438,2]
[361272378,1747410644020,-151.0,0.00016438,2]
[361272379,1747410644030,-151.0,0.00016438,2]
[361272380,1747410644039,-1452.69,0.00016438,2]
[361272381,1747410644048,-1550.17,0.00016438,2]
[361272382,1747410644058,-400.0,0.00016438,2]
[361272383,1747410644068,-400.0,0.00016438,2]
[361272384,1747410644077,-400.0,0.00016438,2]
[361272385,1747410644086,-400.0,0.00016438,2]
[361272386,1747410644096,-400.0,0.00016438,2]
[361272387,1747410644105,-400.0,0.00016438,2]
[361272388,1747410644115,-400.0,0.00016438,2]
[361272389,1747410644125,-525.72,0.00016438,2]
[361272390,1747410644135,-400.0,0.00016438,2]
[361272391,1747410644144,-526.19,0.00016438,2]
[361272392,1747410644154,-400.0,0.00016438,2]
[361272393,1747410644164,-1121.61,0.00016438,2]
[361272394,1747410644173,-832.74,0.00016438,2]
[361272395,1747410644182,-351.7991323,0.00016438,2]
[361272396,1747410644191,-822.68,0.00016438,2]
[361272397,1747410644201,-400.0,0.00016438,2]
[361272398,1747410644210,-400.0,0.00016438,2]
[361272399,1747410644219,-528.3,0.00016438,2]
[361272400,1747410644228,-183.32633634,0.00016438,2]
[361272401,1747410644238,-400.0,0.00016438,2]
[361272402,1747410644248,-400.0,0.00016438,2]
[361272403,1747410644257,-575.83,0.00016438,2]
[361272404,1747410644267,-854.01,0.00016438,2]
[361272405,1747410644277,-400.0,0.00016438,2]
[361272406,1747410644286,-1381.17,0.00016438,2]
[361272407,1747410644295,-400.0,0.00016438,2]
[361272408,1747410644304,-442.5,0.00016438,2]
[361272409,1747410644314,-465.39,0.00016438,2]
[361272410,1747410644323,-400.0,0.00016438,2]
[361272411,1747410644332,-662.72,0.00016438,2]
[361272412,1747410644341,-400.0,0.00016438,2]
[361272413,1747410644350,-151.0,0.00016438,2]
[361272414,1747410644360,-488.43,0.00016438,2]
[361272415,1747410644370,-446.21270066,0.00016438,2]
[361272416,1747410644379,-400.0,0.00016438,2]
[361272417,1747410644392,-624.51,0.00016438,2]
[361272418,1747410644401,-400.0,0.00016438,2]
[361272419,1747410644411,-807.4,0.00016438,2]
[361272420,1747410644420,-400.0,0.00016438,2]
[361272421,1747410644430,-618.16,0.00016438,2]
[361272422,1747410644440,-522.44,0.00016438,2]
[361272423,1747410644449,-554.22,0.00016438,2]
[361272424,1747410644458,-400.0,0.00016438,2]
[361272425,1747410644468,-400.0,0.00016438,2]
[361272426,1747410644477,-456.82,0.00016438,2]
[361272427,1747410644486,-1653.43,0.00016438,2]
[361272428,1747410644495,-400.0,0.00016438,2]
[361272429,1747410644505,-400.0,0.00016438,2]
[361272430,1747410644515,-400.0,0.00016438,2]
[361272431,1747410644524,-400.0,0.00016438,2]
[361272432,1747410644533,-1100.13,0.00016438,2]
[361272433,1747410644542,-1125.59,0.00016438,2]
[361272434,1747410644553,-614.98,0.00016438,2]
[361272435,1747410644562,-151.0,0.00016438,2]
[361272436,1747410644572,-151.0,0.00016438,2]
[361272437,1747410644581,-400.0,0.00016438,2]
[361272438,1747410644590,-400.0,0.00016438,2]
[361272439,1747410644599,-400.0,0.00016438,2]
[361272440,1747410644609,-719.45,0.00016438,2]
[361272441,1747410644619,-400.0,0.00016438,2]
[361272442,1747410644628,-138026.82,0.00016438,2]
[361272443,1747410644637,-1132.80032398,0.00016438,2]
[361272444,1747410644715,-274.05967602,0.00016438,2]
[361272445,1747410644725,-663.47032398,0.00016438,2]
[361272446,1747410644871,-4483.60967602,0.00016438,2]
[361272447,1747410644881,-400.0,0.00016438,2]
[361272448,1747410644890,-400.0,0.00016438,2]
[361272449,1747410644900,-400.0,0.00016438,2]
[361272450,1747410644909,-728.2,0.00016438,2]
[361272451,1747410644918,-597.08,0.00016438,2]
[361272452,1747410644928,-597.08,0.00016438,2]
[361272453,1747410644938,-306.80559733,0.00016438,2]
[361272454,1747410644947,-597.08,0.00016438,2]
[361272455,1747410644956,-597.08,0.00016438,2]
[361272456,1747410644966,-400.0,0.00016438,2]
[361272457,1747410644975,-597.08,0.00016438,2]
[361272458,1747410644985,-8297.68,0.00016438,2]
[361272459,1747410644994,-400.0,0.00016438,2]
[361272460,1747410645004,-400.0,0.00016438,2]
[361272461,1747410645013,-1546.66,0.00016438,2]
[361272462,1747410645023,-1016.94,0.00016438,2]
[361272463,1747410645032,-400.0,0.00016438,2]
[361272464,1747410645042,-6308.92,0.00016438,2]
[361272465,1747410645052,-400.0,0.00016438,2]
[361272466,1747410645061,-498.52,0.00016438,2]
[361272467,1747410645071,-400.0,0.00016438,2]
[361272468,1747410645081,-400.0,0.00016438,2]
[361272469,1747410645091,-413.43,0.00016438,2]
[361272470,1747410645100,-619.91,0.00016438,2]
[361272471,1747410645111,-447.42,0.00016438,2]
[361272472,1747410645120,-1632.21,0.00016438,2]
[361272473,1747410645130,-632.42,0.00016438,2]
[361272474,1747410645387,-198.96836746,0.00016438,2]
[361272475,1747410645398,-400.0,0.00016438,2]
[361272476,1747410645408,-400.0,0.00016438,2]
[361272477,1747410645417,-1294.24,0.00016438,2]
[361272478,1747410645429,-474.502484,0.00016438,2]
[361272479,1747410645438,-474.502484,0.00016438,2]
[361272480,1747410645448,-825.37,0.00016438,2]
[361272481,1747410645460,-466.52,0.00016438,2]
[361272482,1747410645470,-400.0,0.00016438,2]
[361272483,1747410645480,-474.502484,0.00016438,2]
[361272484,1747410645489,-474.502484,0.00016438,2]
[361272485,1747410645499,-402.00388112,0.00016438,2]
[361272486,1747410645510,-837.76254208,0.00016438,2]
[361272487,1747410645523,-822.14461619,0.00016438,2]
[361272488,1747410646188,-1284.25004,0.00016438,2]
[361272489,1747410646226,-337.04549921,0.00016438,2]
[361272490,1747410647035,-310.8,0.00016438,2]
[361272491,1747410647889,-3617.49730252,0.00016438,2]
[361272492,1747410647899,-400.0,0.00016438,2]
[361272493,1747410647908,-400.0,0.00016438,2]
[361272494,1747410647919,-615.91,0.00016438,2]
[361272495,1747410647929,-694.55,0.00016438,2]
[361272496,1747410647939,-1741.08,0.00016438,2]
[361272497,1747410647949,-400.0,0.00016438,2]
[361272498,1747410647959,-400.0,0.00016438,2]
[361272499,1747410647969,-578.01,0.00016438,2]
[361272500,1747410647979,-633.12,0.00016438,2]
[361272501,1747410647989,-419.08,0.00016438,2]
[361272502,1747410648003,-166.55561851,0.00016438,2]
[361272503,1747410648012,-1702.06,0.00016438,2]
[361272504,1747410648022,-963.25,0.00016438,2]
[361272505,1747410648032,-400.0,0.00016438,2]
[361272506,1747410648041,-501.11,0.00016438,2]
[361272507,1747410648051,-534.03,0.00016438,2]
[361272508,1747410648060,-520.38,0.00016438,2]
[361272509,1747410648070,-3092.86,0.00016438,2]
[361272510,1747410648080,-400.0,0.00016438,2]
[361272511,1747410648089,-523.14074585,0.00016438,2]
[361272512,1747410648097,-1417.0,0.00016438,2]
[361272513,1747410648106,-1005.24,0.00016438,2]
[361272514,1747410648115,-643.87,0.00016438,2]
[361272515,1747410648125,-400.0,0.00016438,2]
[361272516,1747410648135,-400.0,0.00016438,2]
[361272517,1747410648144,-955.07,0.00016438,2]
[361272518,1747410648154,-372.86,0.00016438,2]
[361272519,1747410648164,-187.855488,0.00016438,2]
[361272520,1747410648173,-517.75,0.00016438,2]
[361272521,1747410648183,-400.0,0.00016438,2]
[361272522,1747410648193,-545.35,0.00016438,2]
[361272523,1747410648203,-952.44,0.00016438,2]
[361272524,1747410648212,-400.0,0.00016438,2]
[361272525,1747410648222,-7215.75,0.00016438,2]
[361272526,1747410648232,-400.0,0.00016438,2]
[361272527,1747410648241,-3889.82,0.00016438,2]
[361272528,1747410648250,-400.0,0.00016438,2]
[361272529,1747410648260,-400.0,0.00016438,2]
[361272530,1747410648272,-400.0,0.00016438,2]
[361272531,1747410648281,-151.0,0.00016438,2]
[361272532,1747410648291,-551.85,0.00016438,2]
[361272533,1747410648301,-151.0,0.00016438,2]
[361272534,1747410648311,-412.43616069,0.00016438,2]
[361272535,1747410648320,-400.0,0.00016438,2]
[361272536,1747410648330,-455.845519,0.00016438,2]
[361272537,1747410648340,-2622.04,0.00016438,2]
[361272538,1747410648349,-455.845519,0.00016438,2]
[361272539,1747410648359,-3014.73,0.00016438,2]
[361272540,1747410648369,-1663.34,0.00016438,2]
[361272541,1747410648382,-812.51,0.00016438,2]
[361272542,1747410648395,-400.0,0.00016438,2]
[361272543,1747410648405,-563.26,0.00016438,2]
[361272544,1747410648415,-400.0,0.00016438,2]
[361272545,1747410648424,-400.0,0.00016438,2]
[361272546,1747410648435,-2084.95,0.00016438,2]
[361272547,1747410648445,-455.845519,0.00016438,2]
[361272548,1747410648454,-151.0,0.00016438,2]
[361272549,1747410648464,-400.0,0.00016438,2]
[361272550,1747410648474,-455.845519,0.00016438,2]
[361272551,1747410648483,-151.0,0.00016438,2]
[361272552,1747410648493,-151.0,0.00016438,2]
[361272553,1747410648502,-400.0,0.00016438,2]
[361272554,1747410648511,-400.0,0.00016438,2]
[361272555,1747410648522,-400.0,0.00016438,2]
[361272556,1747410648532,-835.13,0.00016438,2]
[361272557,1747410648542,-3233.79,0.00016438,2]
[361272558,1747410648551,-400.0,0.00016438,2]
[361272559,1747410648562,-1413.92,0.00016438,2]
[361272560,1747410648571,-400.0,0.00016438,2]
[361272561,1747410648580,-745.93,0.00016438,2]
[361272562,1747410648590,-949.17,0.00016438,2]
[361272563,1747410648600,-910.41,0.00016438,2]
[361272564,1747410648609,-1211.33,0.00016438,2]
[361272565,1747410648618,-2066.85,0.00016438,2]
[361272566,1747410648627,-2685.46,0.00016438,2]
[361272567,1747410648636,-400.0,0.00016438,2]
[361272568,1747410648646,-477.07722952,0.00016438,2]
[361272569,1747410648656,-14487.75,0.00016438,2]
[361272570,1747410648665,-1829.72,0.00016438,2]
[361272571,1747410648674,-520.14,0.00016438,2]
[361272572,1747410648684,-3955.17,0.00016438,2]
[361272573,1747410648693,-2484.38,0.00016438,2]
[361272574,1747410648703,-458.31,0.00016438,2]
[361272575,1747410648712,-868.56,0.00016438,2]
[361272576,1747410648721,-2250.35,0.00016438,2]
[361272577,1747410648731,-400.0,0.00016438,2]
[361272578,1747410648740,-400.0,0.00016438,2]
[361272579,1747410648750,-400.0,0.00016438,2]
[361272580,1747410648759,-2883.72,0.00016438,2]
[361272581,1747410648770,-151.0,0.00016438,2]
[361272582,1747410648780,-400.0,0.00016438,2]
[361272583,1747410648789,-1514.79,0.00016438,2]
[361272584,1747410648799,-400.0,0.00016438,2]
[361272585,1747410648808,-400.0,0.00016438,2]
[361272586,1747410648818,-1948.09,0.00016438,2]
[361272587,1747410648827,-400.0,0.00016438,2]
[361272588,1747410648837,-400.0,0.00016438,2]
[361272589,1747410648846,-400.0,0.00016438,2]
[361272590,1747410648856,-528.66,0.00016438,2]
[361272591,1747410648866,-1593.91,0.00016438,2]
[361272592,1747410648876,-400.0,0.00016438,2]
[361272593,1747410648885,-781.12,0.00016438,2]
[361272594,1747410648895,-151.0,0.00016438,2]
[361272595,1747410648904,-795.32,0.00016438,2]
[361272596,1747410648914,-1862.74,0.00016438,2]
[361272597,1747410648923,-400.0,0.00016438,2]
[361272598,1747410648932,-400.0,0.00016438,2]
[361272599,1747410648942,-5035.81,0.00016438,2]
[361272600,1747410648951,-441.88,0.00016438,2]
[361272601,1747410648961,-400.0,0.00016438,2]
[361272602,1747410648970,-400.0,0.00016438,2]
[361272603,1747410648980,-2511.72,0.00016438,2]
[361272604,1747410648990,-2672.55,0.00016438,2]
[361272605,1747410648999,-498.4,0.00016438,2]
[361272606,1747410649008,-400.0,0.00016438,2]
[361272607,1747410649021,-400.0,0.00016438,2]
[361272608,1747410649030,-1729.8,0.00016438,2]
[361272609,1747410649040,-789.06,0.00016438,2]
[361272610,1747410649050,-1876.33,0.00016438,2]
[361272611,1747410649060,-400.0,0.00016438,2]
[361272612,1747410649070,-400.0,0.00016438,2]
[361272613,1747410649079,-400.0,0.00016438,2]
[361272614,1747410649089,-784.04,0.00016438,2]
[361272615,1747410649099,-524.1151292,0.00016438,2]
[361272616,1747410649108,-1077.19,0.00016438,2]
[361272617,1747410649118,-151.0,0.00016438,2]
[361272618,1747410649127,-3415.7,0.00016438,2]
[361272619,1747410649137,-3922.97,0.00016438,2]
[361272620,1747410649146,-400.0,0.00016438,2]
[361272621,1747410649156,-502.18,0.00016438,2]
[361272622,1747410649165,-4489.89,0.00016438,2]
[361272623,1747410649175,-500.0,0.00016438,10]
[361272624,1747410649184,-400.0,0.00016438,2]
[361272625,1747410649194,-1203.43,0.00016438,2]
[361272626,1747410649203,-400.0,0.00016438,2]
[361272627,1747410649213,-400.0,0.00016438,2]
[361272628,1747410649223,-400.0,0.00016438,2]
[361272629,1747410649232,-400.0,0.00016438,2]
[361272630,1747410649241,-633.03,0.00016438,2]
[361272631,1747410649251,-1175.46,0.00016438,2]
[361272632,1747410649260,-935.33,0.00016438,2]
[361272633,1747410649271,-400.0,0.00016438,2]
[361272634,1747410649280,-485.03,0.00016438,2]
[361272635,1747410649289,-400.0,0.00016438,2]
[361272636,1747410649299,-1787.7,0.00016438,2]
[361272637,1747410649308,-1141.99,0.00016438,2]
[361272638,1747410649318,-1619.28,0.00016438,2]
[361272639,1747410649327,-400.0,0.00016438,2]
[361272640,1747410649336,-400.0,0.00016438,2]
[361272641,1747410649345,-857.46,0.00016438,2]
[361272642,1747410649355,-400.0,0.00016438,2]
[361272643,1747410649365,-1127.83,0.00016438,2]
[361272644,1747410649374,-400.0,0.00016438,2]
[361272645,1747410649386,-400.0,0.00016438,2]
[361272646,1747410649396,-400.0,0.00016438,2]
[361272647,1747410649406,-400.0,0.00016438,2]
[361272648,1747410649415,-2586.62,0.00016438,2]
[361272649,1747410649424,-1738.78,0.00016438,2]
[361272650,1747410649435,-400.0,0.00016438,2]
[361272651,1747410649444,-400.0,0.00016438,2]
[361272652,1747410649453,-400.0,0.00016438,2]
[361272653,1747410649463,-400.0,0.00016438,2]
[361272654,1747410649473,-400.0,0.00016438,2]
[361272655,1747410649482,-400.0,0.00016438,2]
[361272656,1747410649491,-4956.01,0.00016438,2]
[361272657,1747410649500,-483.71,0.00016438,2]
[361272658,1747410649509,-2616.18,0.00016438,2]
[361272659,1747410649520,-400.0,0.00016438,2]
[361272660,1747410649530,-452.08,0.00016438,2]
[361272661,1747410649539,-704.76,0.00016438,2]
[361272662,1747410649549,-400.0,0.00016438,2]
[361272663,1747410649558,-3520.88,0.00016438,2]
[361272664,1747410649568,-400.0,0.00016438,2]
[361272665,1747410649578,-400.0,0.00016438,2]
[361272666,1747410649588,-228.70638729,0.00016438,2]
[361272667,1747410649597,-1065.0,0.00016438,2]
[361272668,1747410649607,-250.81261458,0.00016438,2]
[361272669,1747410649616,-400.0,0.00016438,2]
[361272670,1747410649626,-1224.34,0.00016438,2]
[361272671,1747410649635,-400.0,0.00016438,2]
[361272672,1747410649645,-1270.47,0.00016438,2]
[361272673,1747410649654,-503.20390505,0.00016438,2]
[361272674,1747410649663,-400.0,0.00016438,2]
[361272675,1747410649674,-400.0,0.00016438,2]
[361272676,1747410649683,-400.0,0.00016438,2]
[361272677,1747410649693,-698.98,0.00016438,2]
[361272678,1747410649702,-3619.8,0.00016438,2]
[361272679,1747410649711,-400.0,0.00016438,2]
[361272680,1747410649720,-544.3233975,0.00016438,2]
[361272681,1747410649730,-400.0,0.00016438,2]
[361272682,1747410649740,-2879.66,0.00016438,2]
[361272683,1747410649750,-400.0,0.00016438,2]
[361272684,1747410649759,-3057.43,0.00016438,2]
[361272685,1747410649770,-347.85214991,0.00016438,2]
[361272686,1747410649780,-400.0,0.00016438,2]
[361272687,1747410649790,-151.0,0.00016438,2]
[361272688,1747410649799,-151.0,0.00016438,2]
[361272689,1747410649809,-400.0,0.00016438,2]
[361272690,1747410649818,-203.200478,0.00016438,2]
[361272691,1747410649827,-1341.89,0.00016438,2]
[361272692,1747410649837,-487.5,0.00016438,2]
[361272693,1747410649846,-1160.11,0.00016438,2]
[361272694,1747410649856,-1557.22,0.00016438,2]
[361272695,1747410649865,-2566.24,0.00016438,2]
[361272696,1747410649875,-270.55027296,0.00016438,2]
[361272697,1747410649884,-400.0,0.00016438,2]
[361272698,1747410649894,-400.0,0.00016438,2]
[361272699,1747410649903,-400.0,0.00016438,2]
[361272700,1747410649912,-1338.32,0.00016438,2]
[361272701,1747410649922,-400.0,0.00016438,2]
[361272702,1747410649932,-151.0,0.00016438,2]
[361272703,1747410649941,-882.4,0.00016438,2]
[361272704,1747410649951,-510.25264832,0.00016438,2]
[361272705,1747410649960,-400.0,0.00016438,2]
[361272706,1747410649970,-518.63,0.00016438,2]
[361272707,1747410649979,-767.74,0.00016438,2]
[361272708,1747410649989,-3493.56,0.00016438,2]
[361272709,1747410649999,-1076.5,0.00016438,2]
[361272710,1747410650008,-153.01581305,0.00016438,2]
[361272711,1747410650019,-2128.34186299,0.00016438,2]
[361272712,1747410650038,-893.42813701,0.00016438,2]
[361272713,1747410650048,-434.11,0.00016438,2]
[361272714,1747410650057,-400.0,0.00016438,2]
[361272715,1747410650066,-182.46186102,0.00016438,2]
[361272716,1747410650259,-558.49358933,0.00016438,2]
[361272717,1747410650272,-11569.03454965,0.00016438,2]
[361272718,1747410650282,-1302.77,0.00016438,2]
[361272719,1747410650291,-673.4,0.00016438,2]
[361272720,1747410650301,-12695.98,0.00016438,2]
[361272721,1747410650310,-400.0,0.00016438,2]
[361272722,1747410650320,-2000.0,0.00016438,2]
[361272723,1747410650329,-8620.51,0.00016438,2]
[361272724,1747410650339,-801.79,0.00016438,2]
[361272725,1747410650348,-404.66331502,0.00016438,2]
[361272726,1747410650358,-649.0,0.00016438,2]
[361272727,1747410650367,-567.12,0.00016438,2]
[361272728,1747410650377,-229.46824299,0.00016438,2]
[361272729,1747410650390,-400.0,0.00016438,2]
[361272730,1747410650400,-3232.74,0.00016438,2]
[361272731,1747410650409,-400.0,0.00016438,2]
[361272732,1747410650418,-494.23,0.00016438,2]
[361272733,1747410650428,-400.0,0.00016438,2]
[361272734,1747410650438,-1690.0,0.00016438,2]
[361272735,1747410650447,-7488.08,0.00016438,2]
[361272736,1747410650457,-223.15056515,0.00016438,2]
[361272737,1747410650467,-400.0,0.00016438,2]
[361272738,1747410650476,-400.0,0.00016438,2]
[361272739,1747410650486,-8638.53,0.00016438,2]
[361272740,1747410650495,-488.63,0.00016438,2]
[361272741,1747410650504,-6215.51,0.00016438,2]
[361272742,1747410650515,-400.0,0.00016438,2]
[361272743,1747410650525,-293.5559,0.00016438,2]
[361272744,1747410650534,-579.12,0.00016438,2]
[361272745,1747410650543,-293.5559,0.00016438,2]
[361272746,1747410650553,-316.33096944,0.00016438,2]
[361272747,1747410650562,-400.0,0.00016438,2]
[361272748,1747410650572,-7152.5,0.00016438,2]
[361272749,1747410650581,-265.13353157,0.00016438,2]
[361272750,1747410650591,-151.0,0.00016438,2]
[361272751,1747410650601,-151.0,0.00016438,2]
[361272752,1747410650611,-400.0,0.00016438,2]
[361272753,1747410650621,-400.0,0.00016438,2]
[361272754,1747410650631,-400.0,0.00016438,2]
[361272755,1747410650640,-293.5559,0.00016438,2]
[361272756,1747410650650,-400.0,0.00016438,2]
[361272757,1747410650659,-293.5559,0.00016438,2]
[361272758,1747410650668,-2739.07,0.00016438,2]
[361272759,1747410650678,-400.0,0.00016438,2]
[361272760,1747410650688,-636.53,0.00016438,2]
[361272761,1747410650698,-733.78,0.00016438,2]
[361272762,1747410650708,-3128.98,0.00016438,2]
[361272763,1747410650717,-400.0,0.00016438,2]
[361272764,1747410650727,-994.94,0.00016438,2]
[361272765,1747410650738,-527.32,0.00016438,2]
[361272766,1747410650747,-151.0,0.00016438,2]
[361272767,1747410650757,-151.0,0.00016438,2]
[361272768,1747410650767,-400.0,0.00016438,2]
[361272769,1747410650776,-1288.73,0.00016438,2]
[361272770,1747410650786,-400.0,0.00016438,2]
[361272771,1747410650796,-1532.1,0.00016438,2]
[361272772,1747410650805,-400.0,0.00016438,2]
[361272773,1747410650816,-1125.56,0.00016438,2]
[361272774,1747410650825,-400.0,0.00016438,2]
[361272775,1747410650835,-620.38,0.00016438,2]
[361272776,1747410650844,-542.55153897,0.00016438,2]
[361272777,1747410650854,-329.97095232,0.00016438,2]
[361272778,1747410650863,-400.0,0.00016438,2]
[361272779,1747410650873,-919.27,0.00016438,2]
[361272780,1747410650882,-400.0,0.00016438,2]
[361272781,1747410650892,-1351.66799422,0.00016438,2]
[361272782,1747411129850,1191.79407857,0.00025,30]
[361272805,1747411487241,10513.15849181,0.00025,30]
[361272808,1747411651418,450.0,0.0001,2]
[361272809,1747411653987,-165.92258378,0.00012,2]
[361272810,1747411657398,-308.73040108,0.00012,2]
[361272811,1747411658927,-25.34701514,0.00012,2]
[361272813,1747411748589,2348.2,0.00027397,120]
[361272821,1747411832317,-450.0,0.00013099,2]
[361272822,1747411832420,-77.59,0.00013099,2]
[361272823,1747411832430,-550.0,0.00014,2]
[361272824,1747411832439,-200.0,0.00014391,2]
[361272825,1747411832449,-175.92066674,0.00014762,2]
[361272826,1747411832458,-166.46,0.00014846,2]
[361272827,1747411832467,-166.46,0.0001485,2]
[361272828,1747411832476,-166.46,0.00014854,2]
[361272829,1747411832486,-166.46,0.00014858,2]
[361272830,1747411832495,-166.46,0.00014862,2]
[361272831,1747411832504,-166.46,0.00014866,2]
[361272832,1747411832514,-166.46,0.0001487,2]
[361272833,1747411832523,-166.46,0.00014874,2]
[361272834,1747411832532,-166.46,0.00014878,2]
[361272835,1747411832542,-166.46,0.00014881,2]
[361272836,1747411832551,-166.46,0.00014885,2]
[361272837,1747411832561,-166.46,0.00014889,2]
[361272838,1747411832570,-166.46,0.00014893,2]
[361272839,1747411832579,-166.46,0.00014897,2]
[361272840,1747411832589,-166.46,0.00014901,2]
[361272841,1747411832598,-170.31,0.00014904,2]
[361272842,1747411832607,-150.0,0.00014904,7]
[361272843,1747411832617,-166.46,0.00014905,2]
[361272844,1747411832626,-166.46,0.00014909,2]
[361272845,1747411832635,-166.46,0.00014913,2]
[361272846,1747411832644,-166.46,0.00014917,2]
[361272847,1747411832654,-1200.0,0.00014917,2]
[361272848,1747411832664,-300.0,0.00014917,2]
[361272849,1747411832673,-166.46,0.00014921,2]
[361272850,1747411832682,-683.21,0.0001502,2]
[361272851,1747411832692,-566.34,0.00015061,2]
[361272852,1747411832701,-259.28,0.0001517,2]
[361272853,1747411832710,-1000.0,0.00015281,2]
[361272854,1747411832720,-3912.99,0.00015322,2]
[361272855,1747411832729,-342.76,0.00015356,2]
[361272856,1747411832739,-527.59,0.00015363,2]
[361272857,1747411832748,-3544.91711955,0.00015387,2]
[361272858,1747411832759,-689.41057376,0.00015387,2]
[361272859,1747411832771,-270.33973497,0.00015387,2]
[361272860,1747411832785,-1212.17759608,0.00015387,2]
[361272861,1747411832796,-2129.7489092,0.00015387,2]
[361272862,1747411832807,-420.816,0.00015387,2]
[361272863,1747411832833,-331.08241132,0.00015387,2]
[361272867,1747411832871,-1615.13339997,0.00015387,2]
[361272869,1747411832881,-255.97559429,0.00015387,2]
[361272871,1747411832893,-2927.38081394,0.00015387,2]
[361272872,1747411832904,-1942.81809399,0.00015387,2]
[361272875,1747411832926,-8560.19975293,0.00015387,2]
[361272877,1747411832935,-2500.0,0.00015465,2]
[361272879,1747411832945,-250.0,0.00015528,2]
[361272881,1747411832954,-4299.02491521,0.00015565,2]
[361272883,1747411832965,-8711.44508479,0.00015565,2]
[361272884,1747411832974,-6269.88,0.00015565,2]
[361272885,1747411832983,-4608.24952825,0.00015565,2]
[361272889,1747411839262,-8873.66236798,0.00015565,2]
[361272890,1747411839275,-2081.6,0.00015565,2]
[361272891,1747411839287,-2487.882761,0.00015565,2]
[361272892,1747411839298,-1903.46099217,0.00015565,2]
[361272893,1747411839330,-45.1343506,0.00015565,2]
[361272894,1747411839340,-200.0,0.00015593,2]
[361272895,1747411839350,-160.89877255,0.00015615,2]
[361272896,1747411839359,-51559.50628807,0.00015616,2]
[361272897,1747411839371,-633.053,0.00015616,2]
[361272898,1747411839383,-7487.55071193,0.00015616,2]